[Event "Early-Titled-Tuesday-Blitz-April-23-2024"]
[Site "Chess.com"]
[Date "2024.04.23"]
[Round "2"]
[White "Kildepiotr"]
[Black "David_George21"]
[Result "1-0"]
[WhiteElo "2701"]
[BlackElo "2319"]
[TimeControl "180+1"]
[EndTime "8:17:59 PDT"]
[Termination "Kildepiotr won by checkmate"]

1. Nf3 {[%clk 0:03:00.9]} 1... c5 {[%clk 0:02:58.2]} 2. e4 {[%clk 0:03:00.4]}
2... d6 {[%clk 0:02:57.2]} 3. Bb5+ {[%clk 0:03:00.3]} 3... Nd7 {[%clk
0:02:56.9]} 4. c3 {[%clk 0:03:00.3]} 4... a6 {[%clk 0:02:56.4]} 5. Ba4 {[%clk
0:03:00.5]} 5... Nf6 {[%clk 0:02:53.3]} 6. Bc2 {[%clk 0:02:59.9]} 6... c4 {[%clk
0:02:45.9]} 7. b3 {[%clk 0:02:58.2]} 7... b5 {[%clk 0:02:28]} 8. bxc4 {[%clk
0:02:55.6]} 8... bxc4 {[%clk 0:02:28.4]} 9. Na3 {[%clk 0:02:53.8]} 9... Qc7
{[%clk 0:02:24]} 10. Qe2 {[%clk 0:02:53.3]} 10... Nb6 {[%clk 0:02:18.9]} 11. O-O
{[%clk 0:02:50.5]} 11... g6 {[%clk 0:01:58.5]} 12. Rb1 {[%clk 0:02:45.2]} 12...
Bg7 {[%clk 0:01:58.6]} 13. Rb4 {[%clk 0:02:42.3]} 13... a5 {[%clk 0:01:40.1]}
14. Rb1 {[%clk 0:02:27.9]} 14... O-O {[%clk 0:01:31.5]} 15. Nb5 {[%clk
0:02:27.9]} 15... Qd8 {[%clk 0:01:26]} 16. Ba3 {[%clk 0:02:20]} 16... Nfd7
{[%clk 0:01:17.7]} 17. h4 {[%clk 0:02:07.6]} 17... h5 {[%clk 0:01:12.4]} 18.
Nbd4 {[%clk 0:01:54.3]} 18... Bb7 {[%clk 0:01:09]} 19. Ng5 {[%clk 0:01:52.2]}
19... Rb8 {[%clk 0:00:59.7]} 20. Rb5 {[%clk 0:01:47.5]} 20... Ra8 {[%clk
0:00:52]} 21. Rfb1 {[%clk 0:01:45.7]} 21... Ba6 {[%clk 0:00:51.9]} 22. Rxa5
{[%clk 0:01:39.3]} 22... Qc7 {[%clk 0:00:44.8]} 23. Bb4 {[%clk 0:01:25.5]} 23...
Ne5 {[%clk 0:00:39.2]} 24. a4 {[%clk 0:01:15.6]} 24... Nd3 {[%clk 0:00:38.9]}
25. Nb5 {[%clk 0:00:57.6]} 25... Qd8 {[%clk 0:00:16.4]} 26. Nf3 {[%clk
0:00:50.9]} 26... Nxb4 {[%clk 0:00:15.1]} 27. cxb4 {[%clk 0:00:45.9]} 27... d5
{[%clk 0:00:08.9]} 28. e5 {[%clk 0:00:33.5]} 28... d4 {[%clk 0:00:08.4]} 29. Be4
{[%clk 0:00:33.4]} 29... d3 {[%clk 0:00:08.2]} 30. Qe3 {[%clk 0:00:32.5]} 30...
Nd5 {[%clk 0:00:05.7]} 31. Qc5 {[%clk 0:00:29.5]} 31... e6 {[%clk 0:00:03.7]}
32. Qxc4 {[%clk 0:00:26.2]} 32... Rc8 {[%clk 0:00:03.8]} 33. Qxd3 {[%clk
0:00:25.6]} 33... Bb7 {[%clk 0:00:03.9]} 34. Nd6 {[%clk 0:00:23.6]} 34... Nxb4
{[%clk 0:00:02.3]} 35. Rxb4 {[%clk 0:00:22.4]} 35... Bxe4 {[%clk 0:00:01.7]} 36.
Qxe4 {[%clk 0:00:19.7]} 36... Qxa5 {[%clk 0:00:02.1]} 37. Nxc8 {[%clk 0:00:20]}
37... Rxc8 {[%clk 0:00:01.7]} 38. Rb7 {[%clk 0:00:16.5]} 38... Rc1+ {[%clk
0:00:02.2]} 39. Kh2 {[%clk 0:00:16.6]} 39... Qc5 {[%clk 0:00:02]} 40. Qf4 {[%clk
0:00:15.8]} 40... Qxf2 {[%clk 0:00:01.4]} 41. Qxf7+ {[%clk 0:00:15.8]} 41... Kh7
{[%clk 0:00:01.4]} 42. Qxg7# {[%clk 0:00:16.3]} 1-0

[Event "Early-Titled-Tuesday-Blitz-April-23-2024"]
[Site "Chess.com"]
[Date "2024.04.23"]
[Round "2"]
[White "zurzan"]
[Black "Susal_De_Silva"]
[Result "0-1"]
[WhiteElo "2110"]
[BlackElo "2679"]
[TimeControl "180+1"]
[EndTime "8:17:59 PDT"]
[Termination "Susal_De_Silva won by resignation"]

1. c4 {[%clk 0:03:00.9]} 1... e5 {[%clk 0:02:57.9]} 2. g3 {[%clk 0:03:00.9]}
2... Nf6 {[%clk 0:02:58]} 3. Bg2 {[%clk 0:03:01.5]} 3... d5 {[%clk 0:02:58.1]}
4. cxd5 {[%clk 0:03:00.7]} 4... Nxd5 {[%clk 0:02:58.8]} 5. Nc3 {[%clk
0:03:01.3]} 5... Nb6 {[%clk 0:02:59.2]} 6. Nf3 {[%clk 0:02:58.7]} 6... Nc6
{[%clk 0:02:59.8]} 7. O-O {[%clk 0:02:58.4]} 7... Be7 {[%clk 0:03:00.5]} 8. d3
{[%clk 0:02:58]} 8... O-O {[%clk 0:03:00.9]} 9. a3 {[%clk 0:02:58.2]} 9... a5
{[%clk 0:03:00.5]} 10. h3 {[%clk 0:02:53]} 10... Be6 {[%clk 0:02:59.4]} 11. Be3
{[%clk 0:02:52.2]} 11... f5 {[%clk 0:02:59.1]} 12. Rc1 {[%clk 0:02:45.4]} 12...
f4 {[%clk 0:02:54.5]} 13. Bxb6 {[%clk 0:02:43.9]} 13... cxb6 {[%clk 0:02:55.4]}
14. Nd2 {[%clk 0:02:40.1]} 14... fxg3 {[%clk 0:02:51.5]} 15. fxg3 {[%clk
0:02:41]} 15... Bg5 {[%clk 0:02:40.5]} 16. Nce4 {[%clk 0:02:28.4]} 16... Be3+
{[%clk 0:02:38.7]} 17. Kh2 {[%clk 0:02:27.9]} 17... Nd4 {[%clk 0:02:37.6]} 18.
Rxf8+ {[%clk 0:02:23.2]} 18... Qxf8 {[%clk 0:02:36.3]} 19. Nf3 {[%clk 0:02:14]}
19... Nxf3+ {[%clk 0:02:27.3]} 20. Bxf3 {[%clk 0:02:09.3]} 20... Bxc1 {[%clk
0:02:27.5]} 21. Qxc1 {[%clk 0:02:09.3]} 21... Rc8 {[%clk 0:02:26.8]} 22. Qe3
{[%clk 0:02:07]} 22... Qf5 {[%clk 0:02:23.4]} 23. Bg4 {[%clk 0:02:03.3]} 23...
Qg6 {[%clk 0:02:14]} 24. Nd6 {[%clk 0:01:48.2]} 24... Rf8 {[%clk 0:02:09]} 25.
Bxe6+ {[%clk 0:01:40]} 25... Qxe6 {[%clk 0:02:09.9]} 26. Nc4 {[%clk 0:01:28.9]}
26... Rf5 {[%clk 0:01:25.7]} 27. Nxb6 {[%clk 0:01:26.4]} 27... Qc6 {[%clk
0:01:03.6]} 28. Nc4 {[%clk 0:01:23.2]} 28... Rf1 {[%clk 0:00:59.7]} 29. Qe4
{[%clk 0:01:03.8]} 29... Qxe4 {[%clk 0:00:59.6]} 30. dxe4 {[%clk 0:01:03.7]}
30... Rf2+ {[%clk 0:01:00.5]} 31. Kg1 {[%clk 0:01:03.1]} 31... Rxe2 {[%clk
0:01:01.4]} 32. Nxa5 {[%clk 0:01:00.3]} 32... Rxb2 {[%clk 0:00:59.7]} 33. Nc4
{[%clk 0:00:59.4]} 33... Re2 {[%clk 0:00:57.4]} 34. Nd6 {[%clk 0:00:53.2]} 34...
Re3 {[%clk 0:00:57]} 35. Kf2 {[%clk 0:00:52.5]} 35... Rb3 {[%clk 0:00:53.3]} 36.
a4 {[%clk 0:00:51.2]} 36... Rb4 {[%clk 0:00:49]} 37. a5 {[%clk 0:00:50]} 37...
Kf8 {[%clk 0:00:48.5]} 38. Ke3 {[%clk 0:00:43.9]} 38... Ke7 {[%clk 0:00:47.3]}
39. Nf5+ {[%clk 0:00:42.6]} 39... Kf6 {[%clk 0:00:46.4]} 40. Nd6 {[%clk
0:00:41.8]} 40... Ke6 {[%clk 0:00:44]} 41. Nf5 {[%clk 0:00:40.9]} 41... g6
{[%clk 0:00:44.3]} 42. Nh4 {[%clk 0:00:31.7]} 42... Ra4 {[%clk 0:00:44.2]} 43.
Nf3 {[%clk 0:00:23.7]} 43... Kf6 {[%clk 0:00:34.1]} 44. g4 {[%clk 0:00:21.9]}
44... Rxa5 {[%clk 0:00:34.1]} 45. g5+ {[%clk 0:00:22.2]} 45... Ke6 {[%clk
0:00:34.7]} 46. h4 {[%clk 0:00:22.4]} 46... Ra3+ {[%clk 0:00:35.1]} 47. Kf2
{[%clk 0:00:22.2]} 47... Rxf3+ {[%clk 0:00:36]} 48. Kxf3 {[%clk 0:00:22.4]}
48... Kd6 {[%clk 0:00:36.7]} 49. Ke3 {[%clk 0:00:23.1]} 49... Kc5 {[%clk
0:00:37.1]} 50. Kd3 {[%clk 0:00:24]} 50... Kb4 {[%clk 0:00:36.9]} 51. Kd2 {[%clk
0:00:18]} 51... Kc4 {[%clk 0:00:36.7]} 52. Ke3 {[%clk 0:00:18.2]} 52... b5
{[%clk 0:00:36.9]} 0-1

[Event "Early-Titled-Tuesday-Blitz-April-23-2024"]
[Site "Chess.com"]
[Date "2024.04.23"]
[Round "2"]
[White "MikeSailer"]
[Black "King_Deded4d5"]
[Result "0-1"]
[WhiteElo "2174"]
[BlackElo "2484"]
[TimeControl "180+1"]
[EndTime "8:18:00 PDT"]
[Termination "King_Deded4d5 won by resignation"]

1. b4 {[%clk 0:02:11.2]} 1... d5 {[%clk 0:02:57.8]} 2. Bb2 {[%clk 0:02:11]} 2...
Bf5 {[%clk 0:02:54.9]} 3. g3 {[%clk 0:02:10.5]} 3... e6 {[%clk 0:02:54.9]} 4.
Bg2 {[%clk 0:02:08.4]} 4... Nf6 {[%clk 0:02:55.3]} 5. a3 {[%clk 0:02:04.4]} 5...
Be7 {[%clk 0:02:43]} 6. Nf3 {[%clk 0:02:03.2]} 6... O-O {[%clk 0:02:29.7]} 7.
O-O {[%clk 0:02:01.9]} 7... Nbd7 {[%clk 0:02:27.6]} 8. d3 {[%clk 0:01:49.7]}
8... a5 {[%clk 0:02:27]} 9. b5 {[%clk 0:01:45.4]} 9... Nc5 {[%clk 0:02:27.5]}
10. a4 {[%clk 0:01:43.5]} 10... Nfd7 {[%clk 0:02:10.2]} 11. Nbd2 {[%clk
0:01:40.5]} 11... Bf6 {[%clk 0:02:09.4]} 12. Bxf6 {[%clk 0:01:38.6]} 12... Qxf6
{[%clk 0:02:10.3]} 13. c4 {[%clk 0:01:36.7]} 13... Nb6 {[%clk 0:02:02.9]} 14.
Qc2 {[%clk 0:01:21.4]} 14... d4 {[%clk 0:01:48.1]} 15. Nh4 {[%clk 0:00:59.6]}
15... Bg4 {[%clk 0:01:44.8]} 16. Rfe1 {[%clk 0:00:57.7]} 16... Rad8 {[%clk
0:01:41.2]} 17. Ne4 {[%clk 0:00:49.7]} 17... Nxe4 {[%clk 0:01:38.3]} 18. Bxe4
{[%clk 0:00:45.2]} 18... Nd7 {[%clk 0:01:15.6]} 19. Bxb7 {[%clk 0:00:42.3]}
19... Nc5 {[%clk 0:01:16.2]} 20. Bf3 {[%clk 0:00:41]} 20... Bxf3 {[%clk
0:01:11.7]} 21. Nxf3 {[%clk 0:00:39.9]} 21... e5 {[%clk 0:01:12.4]} 22. Nd2
{[%clk 0:00:37.3]} 22... h5 {[%clk 0:01:07.8]} 23. Ne4 {[%clk 0:00:33.6]} 23...
Nxe4 {[%clk 0:01:07.5]} 24. dxe4 {[%clk 0:00:33.9]} 24... h4 {[%clk 0:01:03.7]}
25. Qd3 {[%clk 0:00:33.8]} 25... h3 {[%clk 0:00:58]} 26. Qf3 {[%clk 0:00:32.8]}
26... Qxf3 {[%clk 0:00:52.7]} 27. exf3 {[%clk 0:00:32.1]} 27... d3 {[%clk
0:00:53.6]} 28. Red1 {[%clk 0:00:31.6]} 28... Rd4 {[%clk 0:00:53.9]} 29. Rac1
{[%clk 0:00:30.8]} 29... Rfd8 {[%clk 0:00:53]} 30. Rd2 {[%clk 0:00:30.6]} 30...
g6 {[%clk 0:00:49.5]} 31. Rc3 {[%clk 0:00:29.3]} 31... f5 {[%clk 0:00:48.8]} 32.
exf5 {[%clk 0:00:27.2]} 32... gxf5 {[%clk 0:00:49.7]} 33. Kf1 {[%clk 0:00:27.6]}
33... Kf7 {[%clk 0:00:48.9]} 34. Ke1 {[%clk 0:00:22.9]} 34... Ke6 {[%clk
0:00:38.2]} 35. Rb2 {[%clk 0:00:22.5]} 35... e4 {[%clk 0:00:30.9]} 36. fxe4
{[%clk 0:00:22]} 36... fxe4 {[%clk 0:00:31.8]} 37. Kd2 {[%clk 0:00:22.6]} 37...
Rf8 {[%clk 0:00:27.4]} 38. Ke3 {[%clk 0:00:18.2]} 38... Ke5 {[%clk 0:00:27.6]}
39. f4+ {[%clk 0:00:09.6]} 39... exf3 {[%clk 0:00:26.9]} 40. Kf2 {[%clk
0:00:08.2]} 40... d2 {[%clk 0:00:26.4]} 0-1

[Event "Early-Titled-Tuesday-Blitz-April-23-2024"]
[Site "Chess.com"]
[Date "2024.04.23"]
[Round "2"]
[White "Shankland"]
[Black "ITheOnlyME"]
[Result "1-0"]
[WhiteElo "3052"]
[BlackElo "2447"]
[TimeControl "180+1"]
[EndTime "8:18:02 PDT"]
[Termination "Shankland won by resignation"]

1. e4 {[%clk 0:03:00.9]} 1... c5 {[%clk 0:02:59.9]} 2. Nf3 {[%clk 0:02:59.9]}
2... g6 {[%clk 0:03:00]} 3. d4 {[%clk 0:02:57.8]} 3... cxd4 {[%clk 0:03:00.9]}
4. Nxd4 {[%clk 0:02:58.2]} 4... Bg7 {[%clk 0:03:01.1]} 5. c4 {[%clk 0:02:58.5]}
5... Nc6 {[%clk 0:03:01.2]} 6. Be3 {[%clk 0:02:58]} 6... Nf6 {[%clk 0:03:01.6]}
7. Nc3 {[%clk 0:02:58.1]} 7... O-O {[%clk 0:03:02.1]} 8. Be2 {[%clk 0:02:57.5]}
8... d6 {[%clk 0:03:02.7]} 9. O-O {[%clk 0:02:57.5]} 9... Bd7 {[%clk 0:03:03.3]}
10. Nc2 {[%clk 0:02:57.8]} 10... a5 {[%clk 0:03:03.2]} 11. Rc1 {[%clk
0:02:56.4]} 11... Nb4 {[%clk 0:03:02.1]} 12. Nd4 {[%clk 0:02:55.6]} 12... Nc6
{[%clk 0:03:02.4]} 13. Ndb5 {[%clk 0:02:55.4]} 13... Ne8 {[%clk 0:02:59.1]} 14.
Qd2 {[%clk 0:02:54.1]} 14... Qc8 {[%clk 0:02:53.7]} 15. Nd5 {[%clk 0:02:52.5]}
15... Be6 {[%clk 0:02:39.9]} 16. Nb6 {[%clk 0:02:51.8]} 16... Qd8 {[%clk
0:02:40.5]} 17. Nxa8 {[%clk 0:02:51.3]} 17... Qxa8 {[%clk 0:02:41.4]} 18. b3
{[%clk 0:02:50.9]} 18... Nf6 {[%clk 0:02:38.1]} 19. f3 {[%clk 0:02:50]} 19...
Nd7 {[%clk 0:02:38]} 20. Rfd1 {[%clk 0:02:48]} 20... Nc5 {[%clk 0:02:36.8]} 21.
Nd4 {[%clk 0:02:45]} 21... Rc8 {[%clk 0:02:25.6]} 22. Nxc6 {[%clk 0:02:41.7]}
22... Rxc6 {[%clk 0:02:24.4]} 23. Bd4 {[%clk 0:02:41.9]} 23... Bxd4+ {[%clk
0:02:21.8]} 24. Qxd4 {[%clk 0:02:40.5]} 24... Qc8 {[%clk 0:02:21.3]} 25. Qe3
{[%clk 0:02:38.4]} 25... Na6 {[%clk 0:02:16]} 26. Rd2 {[%clk 0:02:35.4]} 26...
b5 {[%clk 0:02:10.3]} 27. Qc3 {[%clk 0:02:17.2]} 27... a4 {[%clk 0:02:01.3]} 28.
Qa5 {[%clk 0:02:10.2]} 28... axb3 {[%clk 0:01:49]} 29. axb3 {[%clk 0:02:10.2]}
29... bxc4 {[%clk 0:01:36.3]} 30. Rdc2 {[%clk 0:02:05.7]} 30... Nc5 {[%clk
0:01:30.2]} 31. Bxc4 {[%clk 0:02:00.7]} 31... Bxc4 {[%clk 0:00:39.5]} 32. Rxc4
{[%clk 0:01:59.3]} 32... Ra6 {[%clk 0:00:39.9]} 33. Qc3 {[%clk 0:01:53.6]} 33...
Ra3 {[%clk 0:00:34.3]} 34. Qb2 {[%clk 0:01:46.9]} 34... Qa6 {[%clk 0:00:34.7]}
35. b4 {[%clk 0:01:40.6]} 35... Ra2 {[%clk 0:00:26]} 36. Qc3 {[%clk 0:01:38.8]}
36... Ra3 {[%clk 0:00:25.2]} 37. Qd4 {[%clk 0:01:24]} 37... e5 {[%clk 0:00:25]}
38. Qd5 {[%clk 0:01:23.9]} 38... Nd3 {[%clk 0:00:21]} 39. h4 {[%clk 0:00:52.9]}
39... Qa7+ {[%clk 0:00:16.6]} 40. Kh2 {[%clk 0:00:49.8]} 40... Qf2 {[%clk
0:00:13]} 41. R4c2 {[%clk 0:00:41]} 41... Qxh4+ {[%clk 0:00:12.6]} 42. Kg1
{[%clk 0:00:41.6]} 42... Nxc1 {[%clk 0:00:12.2]} 43. Qxd6 {[%clk 0:00:38.7]}
43... Qe1+ {[%clk 0:00:11.9]} 44. Kh2 {[%clk 0:00:39]} 44... Qh4+ {[%clk
0:00:12.3]} 45. Kg1 {[%clk 0:00:39.3]} 45... Ne2+ {[%clk 0:00:12]} 46. Kf1
{[%clk 0:00:37.7]} 46... Qh1+ {[%clk 0:00:11.8]} 47. Kf2 {[%clk 0:00:36.5]}
47... Qxg2+ {[%clk 0:00:12.7]} 48. Kxg2 {[%clk 0:00:36.3]} 1-0

[Event "Early-Titled-Tuesday-Blitz-April-23-2024"]
[Site "Chess.com"]
[Date "2024.04.23"]
[Round "2"]
[White "oggy1984"]
[Black "Zavgorodniy_Sergiy"]
[Result "0-1"]
[WhiteElo "2362"]
[BlackElo "2615"]
[TimeControl "180+1"]
[EndTime "8:18:05 PDT"]
[Termination "Zavgorodniy_Sergiy won on time"]

1. e4 {[%clk 0:03:00.9]} 1... c5 {[%clk 0:02:55.9]} 2. Nf3 {[%clk 0:03:00.1]}
2... Nc6 {[%clk 0:02:55.8]} 3. d4 {[%clk 0:02:56.5]} 3... cxd4 {[%clk
0:02:55.5]} 4. Nxd4 {[%clk 0:02:57]} 4... g6 {[%clk 0:02:55.8]} 5. Be3 {[%clk
0:02:51.9]} 5... Bg7 {[%clk 0:02:55.7]} 6. Nc3 {[%clk 0:02:51.8]} 6... Nf6
{[%clk 0:02:56.2]} 7. Bc4 {[%clk 0:02:47.2]} 7... Na5 {[%clk 0:02:56]} 8. Bb3
{[%clk 0:02:39.7]} 8... Nxb3 {[%clk 0:02:56]} 9. axb3 {[%clk 0:02:40.6]} 9...
O-O {[%clk 0:02:56.2]} 10. e5 {[%clk 0:02:32.6]} 10... Ne8 {[%clk 0:02:54.8]}
11. f4 {[%clk 0:01:53.3]} 11... d6 {[%clk 0:02:51.8]} 12. Nf3 {[%clk 0:01:37]}
12... Bg4 {[%clk 0:02:45]} 13. O-O {[%clk 0:01:25.4]} 13... a6 {[%clk 0:02:30]}
14. Nd5 {[%clk 0:01:15.8]} 14... dxe5 {[%clk 0:02:06]} 15. Bb6 {[%clk
0:01:12.4]} 15... Qd7 {[%clk 0:01:58.3]} 16. h3 {[%clk 0:01:11.2]} 16... Be6
{[%clk 0:01:56.4]} 17. Ra5 {[%clk 0:00:55.9]} 17... Bxd5 {[%clk 0:01:29.2]} 18.
Rxd5 {[%clk 0:00:44.8]} 18... Qc6 {[%clk 0:01:28.8]} 19. Be3 {[%clk 0:00:42.6]}
19... exf4 {[%clk 0:01:27.5]} 20. Bxf4 {[%clk 0:00:42.1]} 20... Nf6 {[%clk
0:01:25.3]} 21. Rd3 {[%clk 0:00:36.9]} 21... Rac8 {[%clk 0:01:20.4]} 22. c4
{[%clk 0:00:33.9]} 22... Ne4 {[%clk 0:01:03.4]} 23. Kh2 {[%clk 0:00:24.9]} 23...
Nc5 {[%clk 0:00:54]} 24. Re3 {[%clk 0:00:20.5]} 24... Rfd8 {[%clk 0:00:52]} 25.
Qe2 {[%clk 0:00:20.7]} 25... Ne6 {[%clk 0:00:49.2]} 26. Be5 {[%clk 0:00:16.5]}
26... Bh6 {[%clk 0:00:29.1]} 27. Re4 {[%clk 0:00:12.3]} 27... Qd7 {[%clk
0:00:29.4]} 28. Bc3 {[%clk 0:00:10.3]} 28... Nf4 {[%clk 0:00:25]} 29. Qf2 {[%clk
0:00:08.6]} 29... f6 {[%clk 0:00:21.4]} 30. Qh4 {[%clk 0:00:07.5]} 30... Qd6
{[%clk 0:00:11]} 31. g3 {[%clk 0:00:06.5]} 31... Nh5 {[%clk 0:00:10.2]} 32. Rfe1
{[%clk 0:00:05.1]} 32... e5 {[%clk 0:00:09.6]} 33. g4 {[%clk 0:00:04]} 33...
Bf4+ {[%clk 0:00:08.5]} 34. Kg2 {[%clk 0:00:03.6]} 34... Ng3 {[%clk 0:00:09]}
35. Rxf4 {[%clk 0:00:03]} 35... exf4 {[%clk 0:00:08.6]} 36. Bxf6 {[%clk
0:00:02.8]} 36... Re8 {[%clk 0:00:08.4]} 0-1

[Event "Early-Titled-Tuesday-Blitz-April-23-2024"]
[Site "Chess.com"]
[Date "2024.04.23"]
[Round "2"]
[White "DinaBelenkaya"]
[Black "lamomiajunior"]
[Result "0-1"]
[WhiteElo "2421"]
[BlackElo "2736"]
[TimeControl "180+1"]
[EndTime "8:18:07 PDT"]
[Termination "lamomiajunior won by checkmate"]

1. e4 {[%clk 0:02:54.7]} 1... c5 {[%clk 0:02:59.8]} 2. Nc3 {[%clk 0:02:53.2]}
2... d6 {[%clk 0:02:58.8]} 3. Nf3 {[%clk 0:02:52.1]} 3... a6 {[%clk 0:02:58]} 4.
g3 {[%clk 0:02:51.4]} 4... Nf6 {[%clk 0:02:57.4]} 5. Bg2 {[%clk 0:02:50.9]} 5...
g6 {[%clk 0:02:57.5]} 6. O-O {[%clk 0:02:49.1]} 6... Bg7 {[%clk 0:02:57.9]} 7.
a4 {[%clk 0:02:47.1]} 7... O-O {[%clk 0:02:57.9]} 8. d3 {[%clk 0:02:47.1]} 8...
Nc6 {[%clk 0:02:58.2]} 9. Be3 {[%clk 0:02:47.1]} 9... Bg4 {[%clk 0:02:57]} 10.
h3 {[%clk 0:02:44.7]} 10... Bxf3 {[%clk 0:02:57.5]} 11. Qxf3 {[%clk 0:02:45.3]}
11... Nd7 {[%clk 0:02:58.4]} 12. Qg4 {[%clk 0:02:34.2]} 12... Rb8 {[%clk
0:02:57.9]} 13. Qh4 {[%clk 0:02:32.5]} 13... e6 {[%clk 0:02:55.3]} 14. Bg5
{[%clk 0:02:32.2]} 14... Bf6 {[%clk 0:02:53.1]} 15. f4 {[%clk 0:02:30]} 15...
Nd4 {[%clk 0:02:39.4]} 16. Rf2 {[%clk 0:02:29.1]} 16... b5 {[%clk 0:02:38.3]}
17. axb5 {[%clk 0:02:28.2]} 17... axb5 {[%clk 0:02:39.2]} 18. e5 {[%clk
0:02:28]} 18... dxe5 {[%clk 0:02:37.4]} 19. Ne4 {[%clk 0:02:28.3]} 19... Bxg5
{[%clk 0:02:33.7]} 20. Nxg5 {[%clk 0:02:28.2]} 20... h5 {[%clk 0:02:33.8]} 21.
g4 {[%clk 0:01:55.3]} 21... exf4 {[%clk 0:01:54.8]} 22. c3 {[%clk 0:01:37.3]}
22... f6 {[%clk 0:01:37.6]} 23. Ne4 {[%clk 0:01:15.6]} 23... Nc6 {[%clk
0:00:27.8]} 24. gxh5 {[%clk 0:00:45.9]} 24... g5 {[%clk 0:00:27.3]} 25. Qg4
{[%clk 0:00:46.3]} 25... Nce5 {[%clk 0:00:23.1]} 26. Qe2 {[%clk 0:00:44.8]}
26... f5 {[%clk 0:00:18.7]} 27. Nd6 {[%clk 0:00:38.7]} 27... Qe7 {[%clk
0:00:16.3]} 28. Ra6 {[%clk 0:00:34.2]} 28... c4 {[%clk 0:00:10.2]} 29. d4 {[%clk
0:00:29.9]} 29... Nd3 {[%clk 0:00:10.7]} 30. Rf1 {[%clk 0:00:30.3]} 30... Nf6
{[%clk 0:00:10.3]} 31. Nxf5 {[%clk 0:00:28.9]} 31... Qd7 {[%clk 0:00:07.7]} 32.
Rxe6 {[%clk 0:00:25]} 32... Rbe8 {[%clk 0:00:06.8]} 33. Ne7+ {[%clk 0:00:02.5]}
33... Kf7 {[%clk 0:00:07.1]} 34. Ng6 {[%clk 0:00:02.9]} 34... Rxe6 {[%clk
0:00:07]} 35. Nxf8 {[%clk 0:00:03.3]} 35... Rxe2 {[%clk 0:00:07]} 36. Nxd7
{[%clk 0:00:03.1]} 36... Nxd7 {[%clk 0:00:07.9]} 37. Bd5+ {[%clk 0:00:03.1]}
37... Kg7 {[%clk 0:00:08]} 38. Bc6 {[%clk 0:00:03.5]} 38... Nf6 {[%clk
0:00:08.2]} 39. Bxb5 {[%clk 0:00:03.5]} 39... Nxh5 {[%clk 0:00:08.3]} 40. Bxc4
{[%clk 0:00:03.7]} 40... Rd2 {[%clk 0:00:07.6]} 41. Bxd3 {[%clk 0:00:03.7]}
41... Rxd3 {[%clk 0:00:08.5]} 42. Rb1 {[%clk 0:00:03.6]} 42... Ng3 {[%clk
0:00:08.3]} 43. Rc1 {[%clk 0:00:03]} 43... Rd2 {[%clk 0:00:08.4]} 44. Rb1 {[%clk
0:00:03]} 44... f3 {[%clk 0:00:08.9]} 45. b4 {[%clk 0:00:03.2]} 45... Rg2#
{[%clk 0:00:09.6]} 0-1

[Event "Early-Titled-Tuesday-Blitz-April-23-2024"]
[Site "Chess.com"]
[Date "2024.04.23"]
[Round "2"]
[White "Arteler"]
[Black "ajedrezsinlimites"]
[Result "1/2-1/2"]
[WhiteElo "2355"]
[BlackElo "2560"]
[TimeControl "180+1"]
[EndTime "8:18:07 PDT"]
[Termination "Game drawn by repetition"]

1. e4 {[%clk 0:03:00.9]} 1... d6 {[%clk 0:00:36]} 2. d4 {[%clk 0:02:55.7]} 2...
c6 {[%clk 0:00:35.5]} 3. Nf3 {[%clk 0:02:55.9]} 3... g6 {[%clk 0:00:35.5]} 4.
Nc3 {[%clk 0:02:40.3]} 4... Bg7 {[%clk 0:00:35.6]} 5. Bc4 {[%clk 0:02:22.1]}
5... e6 {[%clk 0:00:32.5]} 6. Be3 {[%clk 0:02:11]} 6... d5 {[%clk 0:00:31.4]} 7.
Bd3 {[%clk 0:01:59]} 7... dxe4 {[%clk 0:00:25.8]} 8. Nxe4 {[%clk 0:01:59.9]}
8... Nf6 {[%clk 0:00:25]} 9. Nxf6+ {[%clk 0:01:39.7]} 9... Bxf6 {[%clk
0:00:23.7]} 10. Bh6 {[%clk 0:01:17.7]} 10... Nd7 {[%clk 0:00:20.5]} 11. Qd2
{[%clk 0:01:14.2]} 11... Nb6 {[%clk 0:00:17.2]} 12. c3 {[%clk 0:01:13.5]} 12...
Qd5 {[%clk 0:00:15.8]} 13. O-O {[%clk 0:01:05.8]} 13... Bd7 {[%clk 0:00:15.4]}
14. Rfe1 {[%clk 0:01:04.7]} 14... O-O-O {[%clk 0:00:13.5]} 15. Ne5 {[%clk
0:01:03.1]} 15... Be8 {[%clk 0:00:11.2]} 16. Bg5 {[%clk 0:00:57.3]} 16... Bxg5
{[%clk 0:00:10.1]} 17. Qxg5 {[%clk 0:00:58.2]} 17... Nd7 {[%clk 0:00:06.5]} 18.
Qf4 {[%clk 0:00:38.8]} 18... Nxe5 {[%clk 0:00:05.6]} 19. Rxe5 {[%clk 0:00:39.7]}
19... Qd6 {[%clk 0:00:06.1]} 20. Rae1 {[%clk 0:00:35]} 20... Rf8 {[%clk
0:00:05.6]} 21. Qf6 {[%clk 0:00:34.8]} 21... Bd7 {[%clk 0:00:05.9]} 22. Bc4
{[%clk 0:00:34.7]} 22... Rde8 {[%clk 0:00:05.3]} 23. Bb3 {[%clk 0:00:34.4]}
23... Qe7 {[%clk 0:00:05.3]} 24. Qf3 {[%clk 0:00:34.5]} 24... Qd8 {[%clk
0:00:04.3]} 25. c4 {[%clk 0:00:34.4]} 25... Qc7 {[%clk 0:00:04.5]} 26. h3 {[%clk
0:00:29.6]} 26... a6 {[%clk 0:00:04.2]} 27. Qe4 {[%clk 0:00:23.7]} 27... Kb8
{[%clk 0:00:04.4]} 28. d5 {[%clk 0:00:23.8]} 28... exd5 {[%clk 0:00:04.1]} 29.
Rxe8+ {[%clk 0:00:24.7]} 29... Rxe8 {[%clk 0:00:04.2]} 30. Qb1 {[%clk
0:00:21.4]} 30... Rxe1+ {[%clk 0:00:03]} 31. Qxe1 {[%clk 0:00:22.3]} 31... dxc4
{[%clk 0:00:03]} 32. Bxc4 {[%clk 0:00:23.2]} 32... Bf5 {[%clk 0:00:03.1]} 33.
Qe8+ {[%clk 0:00:22.4]} 33... Ka7 {[%clk 0:00:03.3]} 34. Qxf7 {[%clk 0:00:22.8]}
34... Qf4 {[%clk 0:00:02.9]} 35. g3 {[%clk 0:00:07.3]} 35... Qc1+ {[%clk
0:00:03.5]} 36. Kg2 {[%clk 0:00:07.6]} 36... Be4+ {[%clk 0:00:03.7]} 37. f3
{[%clk 0:00:05.4]} 37... Qd2+ {[%clk 0:00:03.9]} 38. Kg1 {[%clk 0:00:04.3]}
38... Qe3+ {[%clk 0:00:03.8]} 39. Kg2 {[%clk 0:00:03.7]} 39... Qd2+ {[%clk
0:00:04.2]} 40. Kg1 {[%clk 0:00:03.9]} 40... Qe1+ {[%clk 0:00:04.4]} 41. Kg2
{[%clk 0:00:04.4]} 41... Qd2+ {[%clk 0:00:03.9]} 1/2-1/2